fUST/lending_fUST_20241011
["ID","MTS","AMOUNT","RATE_DAILY","PERIOD"]
[340117381,1728618641393,-500.0,0.00027871,2]
[340117382,1728618641404,-500.0,0.00027871,2]
[340117383,1728618641415,-500.0,0.00027871,2]
[340117384,1728618641426,-500.0,0.00027871,2]
[340117385,1728618641436,-500.0,0.00027871,2]
[340117386,1728618641447,-500.0,0.00027871,2]
[340117387,1728618641458,-500.0,0.00027871,2]
[340117388,1728618641469,-500.0,0.00027871,2]
[340117389,1728618641479,-500.0,0.00027871,2]
[340117390,1728618641488,-500.0,0.00027871,2]
[340117391,1728618641498,-500.0,0.00027871,2]
[340117392,1728618641507,-500.0,0.00027871,2]
[340117393,1728618641516,-500.0,0.00027871,2]
[340117394,1728618641526,-500.0,0.00027871,2]
[340117395,1728618641535,-500.0,0.00027871,2]
[340117396,1728618641545,-500.0,0.00027871,2]
[340117397,1728618641555,-500.0,0.00027871,2]
[340117398,1728618641565,-500.0,0.00027871,2]
[340117399,1728618641575,-500.0,0.00027871,2]
[340117400,1728618641585,-500.0,0.00027871,2]
[340117401,1728618641594,-500.0,0.00027871,2]
[340117402,1728618641603,-500.0,0.00027871,2]
[340117403,1728618641612,-500.0,0.00027871,2]
[340117404,1728618641623,-500.0,0.00027871,2]
[340117405,1728618641633,-500.0,0.00027871,2]
[340117406,1728618641643,-500.0,0.00027871,2]
[340117407,1728618641653,-500.0,0.00027871,2]
[340117408,1728618641664,-500.0,0.00027871,2]
[340117409,1728618641674,-500.0,0.00027871,2]
[340117410,1728618641684,-500.0,0.00027871,2]
[340117411,1728618641693,-500.0,0.00027871,2]
[340117412,1728618641703,-500.0,0.00027871,2]
[340117413,1728618641712,-500.0,0.00027871,2]
[340117414,1728618641724,-500.0,0.00027871,2]
[340117415,1728618641735,-13070.77220518,0.00027872,2]
[340117416,1728618641745,-167.86,0.00027978,10]
[340117417,1728618641754,-9999.66941504,0.00027989,4]
[340117418,1728618641765,-2273.18150326,0.00027989,4]
[340117419,1728618641777,-2136.8568778,0.00027999,2]
[340117420,1728618641787,-1000.0,0.00028,2]
[340117421,1728618641798,-1000.0,0.00028,2]
[340117422,1728618641809,-1000.0,0.00028,2]
[340117423,1728618641821,-789.0,0.00028,2]
[340117424,1728618641832,-209.62452715,0.00028116,2]
[340117425,1728618641843,-500.0,0.0002812,5]
[340117426,1728618641854,-166.666666,0.00028274,2]
[340117427,1728618641865,-309.3034809,0.00028493,2]
[340117428,1728618641875,-217.0722591,0.00028493,2]
[340117429,1728618641887,-826.5141483,0.00028493,2]
[340117430,1728618641896,-169.40087702,0.00028528,2]
[340117431,1728618641907,-201.0,0.0002883,19]
[340117432,1728618641916,-161.5318101,0.00028904,2]
[340117433,1728618641925,-166.666666,0.00028969,2]
[340117434,1728618641934,-9999.66941504,0.00028986,4]
[340117435,1728618641944,-2273.18150326,0.00028986,4]
[340117436,1728618641953,-160.0,0.00028996,10]
[340117437,1728618641963,-209.62452715,0.00029076,2]
[340117438,1728618641972,-465.00272912,0.00029106,2]
[340117439,1728618641981,-501.51634767,0.00029222,2]
[340117440,1728618641991,-587.0,0.00029379,2]
[340117441,1728618642000,-1000.0,0.0002949,5]
[340117442,1728618642010,-150.0,0.00029927,2]
[340117443,1728618642019,-1241.0,0.0002999,120]
[340117444,1728618642028,-1500.0,0.0003,2]
[340117445,1728618642041,-150.0,0.0003,120]
[340117446,1728618642051,-1313.38335301,0.0003,7]
[340117447,1728618642062,-404.13483141,0.0003,7]
[340117448,1728618642071,-209.62452715,0.00030036,2]
[340117449,1728618642082,-169.40087702,0.00030036,2]
[340117450,1728618642091,-9999.66941504,0.00030116,4]
[340117451,1728618642101,-2273.18150326,0.00030116,4]
[340117452,1728618642112,-160.0,0.00030125,10]
[340117453,1728618642122,-9999.66941504,0.00030126,4]
[340117454,1728618642131,-2273.18150326,0.00030126,4]
[340117455,1728618642140,-160.83123902,0.00030135,10]
[340117456,1728618642150,-160.0,0.00030135,10]
[340117457,1728618642161,-369.29872189,0.00030135,2]
[340117458,1728618642170,-5000.0,0.00030136,2]
[340117459,1728618642181,-5000.0,0.00030136,2]
[340117460,1728618642190,-5000.0,0.00030136,2]
[340117461,1728618642200,-5000.0,0.00030136,2]
[340117462,1728618642210,-5000.0,0.00030136,2]
[340117463,1728618642219,-5000.0,0.00030136,2]
[340117464,1728618642229,-5000.0,0.00030136,2]
[340117465,1728618642238,-5000.0,0.00030136,2]
[340117466,1728618642248,-5000.0,0.00030136,2]
[340117467,1728618642257,-3630.24872419,0.00030136,2]
[340117468,1728618642267,-928.32016541,0.0003019,4]
[340117471,1728618655834,5000.0,0.00021024,2]
[340117472,1728618671664,882.81605889,0.00021024,2]
[340117474,1728619203165,500.0,0.0001,2]
[340117530,1728619831828,-193.55572777,0.00021754,2]
[340117531,1728619831839,-296.89699245,0.00021854,2]
[340117532,1728619831949,-168.10573667,0.00021854,2]
[340117533,1728619831963,-230.107816,0.00025347,2]
[340117534,1728619831975,-150.0,0.00025379,2]
[340117535,1728619831986,-526.0,0.00025379,2]
[340117536,1728619831999,-230.107816,0.00025417,2]
[340117537,1728619832010,-230.107816,0.00025486,2]
[340117538,1728619832022,-230.107816,0.00025556,2]
[340117539,1728619832033,-230.107816,0.00025625,2]
[340117540,1728619832043,-230.107816,0.00025695,2]
[340117541,1728619832053,-230.107816,0.00025764,2]
[340117542,1728619832062,-230.107816,0.00025834,2]
[340117543,1728619832073,-230.107816,0.00025903,2]
[340117544,1728619832083,-173.013011,0.00025966,2]
[340117545,1728619832093,-230.107816,0.00025973,2]
[340117546,1728619832108,-230.107816,0.00026042,2]
[340117547,1728619832119,-230.107816,0.00026112,2]
[340117548,1728619832130,-230.107816,0.00026181,2]
[340117549,1728619832141,-3014.53994443,0.0002622,2]
[340117550,1728619832153,-230.107816,0.00026251,2]
[340117551,1728619832164,-300.0,0.00026302,2]
[340117552,1728619832174,-300.0,0.00026302,2]
[340117553,1728619832185,-1853.00050574,0.00026303,2]
[340117560,1728619838217,-193.55572777,0.00021654,2]
[340117561,1728619838228,-2320.972017,0.00026303,2]
[340117562,1728619838242,-3525.44601597,0.00026303,2]
[340117564,1728619838355,-1585.33183703,0.00026303,2]
[340117574,1728619839943,-285.29888257,0.00026303,2]
[340117575,1728619839957,-586.21958524,0.00026303,2]
[340117576,1728619839969,-14743.73115645,0.00026303,2]
[340117577,1728619839978,-230.107816,0.0002632,2]
[340117578,1728619839988,-673.964866,0.00026322,2]
[340117579,1728619839997,-230.107816,0.0002639,2]
[340117580,1728619840007,-230.107816,0.00026459,2]
[340117581,1728619840016,-379.68606,0.00026461,2]
[340117582,1728619840026,-500.0,0.00026467,2]
[340117583,1728619840035,-501.51634767,0.00026467,2]
[340117584,1728619840044,-230.107816,0.00026529,2]
[340117586,1728619840054,-230.107816,0.00026598,2]
[340117587,1728619840150,-230.107816,0.00026668,2]
[340117588,1728619840159,-397.166377,0.00026986,2]
[340117589,1728619840169,-379.68606,0.00027146,2]
[340117590,1728619840183,-167.925057,0.00027249,2]
[340117591,1728619840195,-173.013011,0.00027736,2]
[340117592,1728619840206,-379.68606,0.00027831,2]
[340117593,1728619840217,-1000.0,0.00027837,5]
[340117594,1728619840227,-1000.0,0.00028,2]
[340117595,1728619840236,-1000.0,0.00028,2]
[340117596,1728619840246,-1000.0,0.00028,2]
[340117597,1728619840255,-789.0,0.00028,2]
[340117598,1728619840265,-150.0,0.00028379,2]
[340117599,1728619840276,-526.0,0.00028379,2]
[340117600,1728619840290,-420.0,0.00028455,2]
[340117601,1728619840300,-420.0,0.00028932,2]
[340117602,1728619840312,-173.013011,0.00029506,2]
[340117603,1728619840322,-13070.77220518,0.00029642,2]
[340117604,1728619840335,-201.0,0.0002973,21]
[340117605,1728619840346,-1500.0,0.0002984,5]
[340117606,1728619840357,-500.0,0.00029853,5]
[340117607,1728619840367,-5851.65234242,0.0002987,2]
[340117608,1728619840377,-157.21839537,0.00029914,2]
[340117609,1728619840389,-183.7,0.0003,120]
[340117610,1728619840399,-173.33199205,0.0003009,2]
[340117611,1728619840411,-2136.8568778,0.00030135,2]
[340117612,1728619840421,-587.0,0.00030786,2]
[340117613,1728619840432,-157.21839536,0.00030899,2]
[340117614,1728619840442,-167.86,0.00031001,10]
[340117615,1728619840454,-500.0,0.00031009,2]
[340117616,1728619840464,-500.0,0.00031009,2]
[340117617,1728619840473,-500.0,0.00031009,2]
[340117618,1728619840483,-500.0,0.00031009,2]
[340117619,1728619840491,-500.0,0.00031009,2]
[340117620,1728619840500,-500.0,0.00031009,2]
[340117621,1728619840509,-500.0,0.00031009,2]
[340117622,1728619840518,-500.0,0.00031009,2]
[340117623,1728619840527,-500.0,0.00031009,2]
[340117624,1728619840538,-500.0,0.00031009,2]
[340117625,1728619840549,-500.0,0.00031009,2]
[340117626,1728619840560,-500.0,0.00031009,2]
[340117627,1728619840571,-500.0,0.00031009,2]
[340117628,1728619840581,-500.0,0.00031009,2]
[340117629,1728619840592,-500.0,0.00031009,2]
[340117630,1728619840603,-500.0,0.00031009,2]
[340117631,1728619840614,-500.0,0.00031009,2]
[340117632,1728619840625,-500.0,0.00031009,2]
[340117633,1728619840637,-500.0,0.00031009,2]
[340117634,1728619840648,-500.0,0.00031009,2]
[340117635,1728619840659,-521.80037625,0.00031009,2]
[340117636,1728619840670,-500.0,0.00031009,2]
[340117637,1728619840681,-500.0,0.00031009,2]
[340117638,1728619840691,-500.0,0.00031009,2]
[340117639,1728619840701,-500.0,0.00031009,2]
[340117640,1728619840711,-500.0,0.00031009,2]
[340117641,1728619840724,-500.0,0.00031009,2]
[340117642,1728619840736,-500.0,0.00031009,2]
[340117643,1728619840748,-20000.0,0.00031011,11]
[340117644,1728619840760,-9999.66941504,0.00031149,4]
[340117645,1728619840769,-1818.54520255,0.00031149,4]
[340117646,1728619840780,-500.0,0.0003116,2]
[340117647,1728619840789,-501.70662504,0.00031223,5]
[340117648,1728619840799,-300.95911259,0.00031305,5]
[340117649,1728619840812,-150.0,0.00031379,2]
[340117650,1728619840823,-526.0,0.00031379,2]
[340117651,1728619840834,-500.0,0.0003166,2]
[340117652,1728619840846,-155.0834983,0.00031781,2]
[340117653,1728619840858,-153.0,0.00031781,2]
[340117654,1728619840867,-153.0,0.00031781,2]
[340117655,1728619840878,-587.0,0.00031825,2]
[340117656,1728619840887,-157.21839536,0.00031885,2]
[340117657,1728619840897,-608.40794977,0.00031973,5]
[340117658,1728619840907,-503.43342571,0.00031973,5]
[340117659,1728619840919,-19999.3388301,0.00031979,4]
[340117660,1728619840928,-3637.0904051,0.00031979,4]
[340117661,1728619840940,-5000.0,0.00031987,2]
[340117662,1728619840952,-5000.0,0.00031987,2]
[340117663,1728619840962,-5000.0,0.00031987,2]
[340117664,1728619840972,-5000.0,0.00031987,2]
[340117665,1728619840982,-5000.0,0.00031987,2]
[340117666,1728619840993,-160.0,0.00031988,10]
[340117667,1728619841003,-879.16088768,0.00031988,2]
[340117696,1728619860668,-150.0,0.00032,120]
[340117697,1728619860694,-505.0,0.00033,120]
[340117698,1728619860716,-500.0,0.00033,120]
[340117699,1728619860753,-150.0,0.00033,120]
[340117700,1728619860778,-150.0,0.00033,120]
[340117701,1728619860802,-500.0,0.00033,120]
[340117702,1728619860825,-150.0,0.00033,120]
[340117703,1728619860856,-158.245322,0.00033,120]
[340117704,1728619860881,-199.85794393,0.00033,120]
[340117705,1728619879068,-300.0,0.00032,60]
[340117706,1728619879091,-300.0,0.000328,60]
[340117707,1728619897972,155.0,0.00033,60]
[340117708,1728619902618,-3000.0,0.00032,58]
[340117709,1728619902640,-155.0,0.00033,60]
[340117710,1728619907169,155.0,0.00033,30]
[340117711,1728619911794,196.99480434,0.00033,30]
[340117719,1728620076221,-168.04972,0.00029731,2]
[340117720,1728620076245,-167.0772075,0.00030416,2]
[340117721,1728620076265,-209.334204,0.00030576,2]
[340117722,1728620076287,-24900.0,0.00030942,2]
[340117723,1728620076312,-209.334204,0.00031261,2]
[340117724,1728620076334,-500.0,0.0003135,2]
[340117725,1728620076355,-538.561108,0.0003185,2]
[340117726,1728620076377,-197.83138136,0.00031887,2]
[340117727,1728620076400,-209.334204,0.00031946,2]
[340117728,1728620076423,-400.0,0.00031986,2]
[340117729,1728620076448,-1602.64265835,0.00031987,2]
[340117730,1728620076472,-400.0,0.00032059,2]
[340117731,1728620076494,-724.50317404,0.00032107,2]
[340117732,1728620076519,-2000.0,0.00032181,5]
[340117733,1728620076542,-274.34366438,0.00032206,12]
[340117734,1728620076566,-653.02853691,0.0003256,2]
[340117735,1728620076590,-1000.0,0.00032631,7]
[340117736,1728620076612,-653.02853689,0.00032645,2]
[340117737,1728620076632,-653.02853689,0.0003273,2]
[340117738,1728620076654,-397.166377,0.00032776,2]
[340117739,1728620076676,-653.02853689,0.00032814,2]
[340117740,1728620076697,-1000.0,0.00032859,2]
[340117741,1728620076719,-17008.80916918,0.00032877,2]
[340117742,1728620076854,-653.02853689,0.00032899,2]
[340117743,1728620076876,-2097.09055363,0.000329,2]
[340117744,1728620076899,-160.0,0.00032969,10]
[340117745,1728620076926,-500.0,0.00032979,7]
[340117746,1728620076948,-500.0,0.00032979,7]
[340117747,1728620076971,-500.0,0.00032979,7]
[340117748,1728620076995,-500.0,0.00032979,7]
[340117749,1728620077017,-621.26896831,0.00032979,7]
[340117750,1728620077039,-500.0,0.00032979,7]
[340117751,1728620077062,-500.0,0.00032979,7]
[340117752,1728620077083,-500.0,0.00032979,7]
[340117753,1728620077105,-500.0,0.00032979,7]
[340117754,1728620077127,-500.0,0.00032979,7]
[340117755,1728620077151,-500.0,0.00032979,7]
[340117756,1728620077175,-500.0,0.00032979,7]
[340117757,1728620077197,-500.0,0.00032979,7]
[340117758,1728620077222,-500.0,0.00032979,7]
[340117759,1728620077264,-500.0,0.00032979,7]
[340117760,1728620077293,-500.0,0.00032979,7]
[340117761,1728620077316,-500.0,0.00032979,7]
[340117762,1728620077342,-500.0,0.00032979,7]
[340117763,1728620077367,-500.0,0.00032979,7]
[340117764,1728620077393,-500.0,0.00032979,7]
[340117765,1728620077421,-500.0,0.00032979,7]
[340117766,1728620077451,-500.0,0.00032979,7]
[340117767,1728620077475,-500.0,0.00032979,7]
[340117768,1728620077502,-500.0,0.00032979,7]
[340117769,1728620077527,-500.0,0.00032979,7]
[340117770,1728620077550,-500.0,0.00032979,7]
[340117771,1728620077573,-162.18543022,0.00032979,10]
[340117772,1728620077601,-160.0,0.00032979,10]
[340117773,1728620077624,-5000.0,0.0003298,2]
[340117774,1728620077647,-5000.0,0.0003298,2]
[340117775,1728620077669,-5000.0,0.0003298,2]
[340117776,1728620077692,-5000.0,0.0003298,2]
[340117777,1728620077717,-5000.0,0.0003298,2]
[340117778,1728620077740,-5000.0,0.0003298,2]
[340117779,1728620077765,-5000.0,0.0003298,2]
[340117780,1728620077786,-160.0,0.00032989,10]
[340117781,1728620077808,-5000.0,0.00032989,2]
[340117782,1728620077831,-5000.0,0.00032989,2]
[340117783,1728620077853,-3630.24872419,0.00032989,2]
[340117784,1728620077875,-372.08840765,0.00032989,7]
[340117785,1728620077896,-369.29872189,0.00032989,7]
[340117786,1728620077919,-42498.5950139,0.0003299,5]
[340117787,1728620077944,-116097.09442393,0.0003299,5]
[340117824,1728620788995,5000.0,0.00022,2]
[340117839,1728620923213,1316.46473462,0.0002,2]
[340117840,1728620924051,18803.46474308,0.0001,2]
[340117879,1728621032059,-300.0,0.00022999,2]
[340117880,1728621032069,-13494.84303253,0.00023,2]
[340117991,1728621040169,-1199.23051951,0.00023,2]
[340117992,1728621040179,-2208.44950297,0.0002509,2]
[340117993,1728621040189,-420.0,0.00025299,2]
[340117994,1728621040198,-7458.94652043,0.0002649,2]
[340117995,1728621040207,-173.33199205,0.00026886,2]
[340117997,1728621040218,-377.308058,0.00026986,2]
[340117998,1728621040227,-44074.46952852,0.000275,2]
[340117999,1728621040239,-3095.12539034,0.00027578,2]
[340118000,1728621040249,-526.0,0.00027678,2]
[340118001,1728621040259,-547.068,0.00027678,2]
[340118002,1728621040268,-500.0,0.00027779,2]
[340118003,1728621040277,-500.0,0.00027779,2]
[340118004,1728621040287,-500.0,0.00027779,2]
[340118005,1728621040296,-500.0,0.00027779,2]
[340118006,1728621040305,-500.0,0.00027779,2]
[340118007,1728621040315,-500.0,0.00027779,2]
[340118008,1728621040324,-500.0,0.00027779,2]
[340118009,1728621040333,-500.0,0.00027779,2]
[340118010,1728621040343,-500.0,0.00027779,2]
[340118011,1728621040353,-500.0,0.00027779,2]
[340118012,1728621040362,-500.0,0.00027779,2]
[340118013,1728621040372,-500.0,0.00027779,2]
[340118014,1728621040381,-500.0,0.00027779,2]
[340118015,1728621040390,-500.0,0.00027779,2]
[340118016,1728621040400,-500.0,0.00027779,2]
[340118017,1728621040409,-500.0,0.00027779,2]
[340118018,1728621040417,-500.0,0.00027779,2]
[340118019,1728621040427,-500.0,0.00027779,2]
[340118020,1728621040436,-500.0,0.00027779,2]
[340118021,1728621040445,-500.0,0.00027779,2]
[340118022,1728621040455,-500.0,0.00027779,2]
[340118023,1728621040464,-431.74723546,0.00027779,2]
[340118024,1728621040473,-500.0,0.00027779,2]
[340118025,1728621040482,-500.0,0.00027779,2]
[340118026,1728621040491,-500.0,0.00027779,2]
[340118027,1728621040501,-500.0,0.00027779,2]
[340118028,1728621040511,-500.0,0.00027779,2]
[340118029,1728621040520,-500.0,0.00027779,2]
[340118030,1728621040529,-1155.07478323,0.0002778,2]
[340118031,1728621040538,-587.0,0.00027829,2]
[340118032,1728621040547,-31786.74536686,0.0002799,2]
[340118033,1728621040557,-208.8673848,0.00028945,2]
[340118034,1728621040566,-535.540317,0.0002933,2]
[340118035,1728621040576,-1313.38335301,0.0003,7]
[340118036,1728621040585,-1500.0,0.0003,2]
[340118037,1728621040594,-167.86,0.0003025,10]
[340118038,1728621040603,-24900.0,0.0003026,2]
[340118039,1728621040612,-823.0,0.00030612,2]
[340118040,1728621040622,-526.0,0.00030678,2]
[340118041,1728621040631,-201.0,0.0003106,24]
[340118042,1728621040640,-500.0,0.0003135,2]
[340118043,1728621040650,-500.0,0.0003185,2]
[340118044,1728621040659,-300.95911259,0.00032019,5]
[340118045,1728621040668,-500.0,0.00032019,2]
[340118046,1728621040677,-500.0,0.00032158,5]
[340118047,1728621040686,-500.0,0.000326,5]
[340118048,1728621040695,-377.308058,0.00032776,2]
[340118049,1728621040704,-157.21839537,0.00032889,2]
[340118050,1728621040713,-1000.0,0.0003289,2]
[340118051,1728621040722,-157.21839536,0.00032894,2]
[340118052,1728621040732,-157.21839536,0.00032899,2]
[340118053,1728621040741,-8183.45341145,0.0003298,5]
[340118054,1728621040750,-1736.19621321,0.00032988,2]
[340118055,1728621040760,-156.22122,0.0003299,14]
[340118056,1728621040769,-8183.45341145,0.0003299,5]
[340118057,1728621040778,-160.83123902,0.00032999,10]
[340118058,1728621040787,-258.50910532,0.00032999,7]
[340118059,1728621040796,-260.46188536,0.00032999,7]
[340118060,1728621040805,-21085.420091,0.00033,2]
[340118061,1728621040814,-2552.69264003,0.00033,2]
[340118087,1728621934029,-167.987388,0.00024994,2]
[340118089,1728621934063,-166.666666,0.00025344,2]
[340118091,1728621934098,-250.0,0.00025812,2]
[340118094,1728621934132,-250.0,0.00025883,2]
[340118099,1728621934210,-250.0,0.00025953,2]
[340118102,1728621934246,-250.0,0.00026024,2]
[340118104,1728621934280,-166.666666,0.00026035,2]
[340118107,1728621934315,-250.0,0.00026095,2]
[340118109,1728621934348,-4907.089954,0.00026128,2]
[340118137,1728621960705,177.01987602,0.00026076,2]
[340118139,1728622053629,872.52275,0.00025789,2]
[340118140,1728622126581,818.0549942,0.00025806,2]
[340118142,1728622202832,3271.393302,0.00025806,2]
[340118143,1728622204050,18202.59840378,0.00025806,2]
[340118190,1728622240289,-6697.40159622,0.00025806,2]
[340118191,1728622240300,-250.0,0.00026166,2]
[340118192,1728622240311,-250.0,0.00026236,2]
[340118193,1728622240322,-250.0,0.00026307,2]
[340118194,1728622240333,-250.0,0.00026378,2]
[340118195,1728622240343,-250.0,0.00026449,2]
[340118197,1728622240354,-3271.393302,0.00026491,2]
[340118198,1728622240364,-250.0,0.0002652,2]
[340118199,1728622240373,-250.0,0.0002659,2]
[340118200,1728622240384,-250.0,0.00026661,2]
[340118201,1728622240394,-166.666666,0.00026726,2]
[340118202,1728622240405,-250.0,0.00026732,2]
[340118203,1728622240415,-250.0,0.00026803,2]
[340118204,1728622240425,-300.0,0.00026845,2]
[340118205,1728622240435,-300.0,0.00026845,2]
[340118206,1728622240445,-250.0,0.00026874,2]
[340118207,1728622240455,-250.0,0.00026944,2]
[340118208,1728622240465,-343.674915,0.00026986,2]
[340118209,1728622240478,-168.08970573,0.00027,2]
[340118210,1728622240489,-250.0,0.00027015,2]
[340118211,1728622240500,-250.0,0.00027086,2]
[340118212,1728622240511,-250.0,0.00027157,2]
[340118213,1728622240522,-3271.393302,0.00027176,2]
[340118214,1728622240544,-500.0,0.00027257,2]
[340118215,1728622240558,-150.761,0.00027338,2]
[340118216,1728622240568,-574.834,0.00027338,2]
[340118217,1728622240580,-500.0,0.0002736,2]
[340118218,1728622240592,-166.666666,0.00027417,2]
[340118219,1728622240602,-1000.0,0.00028,2]
[340118220,1728622240613,-1000.0,0.00028,2]
[340118221,1728622240625,-1000.0,0.00028,2]
[340118222,1728622240637,-789.0,0.00028,2]
[340118223,1728622240647,-166.666666,0.00028107,2]
[340118224,1728622240659,-169.40087702,0.00028527,2]
[340118225,1728622240671,-501.70662504,0.00028627,5]
[340118226,1728622240682,-1000.0,0.0002873,5]
[340118227,1728622240693,-166.666666,0.00028798,2]
[340118228,1728622240705,-420.0,0.00029027,2]
[340118229,1728622240822,-420.0,0.00029529,2]
[340118230,1728622240835,-160.0,0.00030043,3]
[340118231,1728622240847,-150.0,0.00030338,2]
[340118232,1728622240857,-526.0,0.00030338,2]
[340118233,1728622240868,-160.0,0.00030536,4]
[340118234,1728622240878,-169.40087702,0.00030663,2]
[340118235,1728622240887,-1500.0,0.00030733,5]
[340118236,1728622240897,-333.57706255,0.00030928,2]
[340118237,1728622240907,-20000.0,0.00031011,11]
[340118238,1728622240919,-160.0,0.00031029,5]
[340118239,1728622240930,-1832.5339772,0.0003135,2]
[340118240,1728622240941,-587.0,0.00031386,2]
[340118241,1728622240954,-333.57706253,0.00031396,2]
[340118242,1728622240965,-300.95911259,0.00031519,5]
[340118243,1728622240976,-500.0,0.00031519,2]
[340118244,1728622240987,-160.0,0.00031521,6]
[340118245,1728622240998,-1832.5339772,0.0003185,2]
[340118246,1728622241007,-333.57706253,0.00031864,2]
[340118247,1728622241016,-201.0,0.0003199,25]
[340118248,1728622241026,-160.0,0.00032014,7]
[340118249,1728622241035,-333.57706253,0.00032331,2]
[340118250,1728622241044,-1832.5339772,0.0003235,2]
[340118251,1728622241054,-587.0,0.00032482,2]
[340118252,1728622241063,-160.0,0.00032507,8]
[340118253,1728622241073,-6147.08037056,0.00032567,2]
[340118254,1728622241082,-500.0,0.00032647,2]
[340118255,1728622241094,-500.0,0.00032647,2]
[340118256,1728622241104,-500.0,0.00032647,2]
[340118257,1728622241118,-500.0,0.00032647,2]
[340118258,1728622241130,-500.0,0.00032647,2]
[340118259,1728622241141,-174.82076842,0.00032647,2]
[340118260,1728622241152,-500.0,0.00032647,2]
[340118261,1728622241165,-500.0,0.00032647,2]
[340118262,1728622241177,-500.0,0.00032647,2]
[340118263,1728622241189,-6147.08037056,0.00032648,2]
[340118264,1728622241200,-1826.23896043,0.00032679,4]
[340118282,1728622246289,-6230.88573966,0.00032679,4]
[340118283,1728622246299,-818.34534109,0.00032679,4]
[340118284,1728622246309,-819.09207924,0.00032688,2]
[340118285,1728622246319,-1940.13370207,0.00032689,4]
[340118286,1728622246335,-515.75313794,0.00032689,4]
[340118314,1728623435216,-169.839838,0.00025153,2]
[340118315,1728623435227,-169.839838,0.00026296,2]
[340118316,1728623435237,-1096.2106914,0.00026434,2]
[340118317,1728623435246,-300.0,0.00026464,2]
[340118318,1728623435255,-300.0,0.00026464,2]
[340118319,1728623435268,-3071.58963009,0.00026465,2]
[340118320,1728623435281,-21828.41036991,0.00026465,2]
[340118321,1728623435291,-568.586549,0.00026469,2]
[340118322,1728623435301,-562.25780178,0.00026574,2]
[340118323,1728623435310,-167.108162,0.00026637,2]
[340118324,1728623435320,-399.374774,0.00026672,2]
[340118325,1728623435332,-167.108162,0.00026744,2]
[340118326,1728623435342,-167.108162,0.00026851,2]
[340118327,1728623435355,-167.108162,0.00026958,2]
[340118328,1728623435364,-360.858661,0.00026986,2]
[340118329,1728623435373,-167.108162,0.00027064,2]
[340118330,1728623435382,-300.95911259,0.000271,2]
[340118331,1728623435391,-500.0,0.000271,2]
[340118332,1728623435400,-167.108162,0.00027171,2]
[340118333,1728623435409,-167.108162,0.00027278,2]
[340118334,1728623435418,-150.0,0.00027338,2]
[340118335,1728623435427,-150.0,0.00027338,2]
[340118336,1728623435436,-526.0,0.00027338,2]
[340118337,1728623435445,-399.374774,0.00027357,2]
[340118338,1728623435455,-167.108162,0.00027385,2]
[340118339,1728623435464,-169.839838,0.00027439,2]
[340118340,1728623435474,-77.89366231,0.00027491,2]
[340118373,1728623440476,-89.21449969,0.00027491,2]
[340118374,1728623440488,-167.108162,0.00027598,2]
[340118375,1728623440498,-167.108162,0.00027705,2]
[340118376,1728623440509,-167.108162,0.00027812,2]
[340118377,1728623440520,-167.108162,0.00027918,2]
[340118378,1728623440529,-1000.0,0.00028,2]
[340118379,1728623440541,-1000.0,0.00028,2]
[340118380,1728623440553,-1000.0,0.00028,2]